[Event "41st Amateur D7"]
[Site "ChessGUI4"]
[Date "2013.07.05"]
[Round "10.2"]
[White "ProChess 1.02AD"]
[Black "Gibbon 2.57a 64-bit"]
[Result "1-0"]
[BlackElo "2251"]
[ECO "E41"]
[EventDate "2013.??.??"]
[TimeControl "40/1500:40/1500:40/1500"]
[WhiteElo "2244"]

{ i5 Quad } 1.d4 { [%eval 0,1] [%emt 0:00:00] } 1...Nf6
{ [%eval 0,1] [%emt 0:00:00] } 2.c4 { [%eval 0,1] [%emt 0:00:00] } 2...e6
{ [%eval 0,1] [%emt 0:00:00] } 3.Nc3 { [%eval 0,1] [%emt 0:00:00] } 3...Bb4
{ [%eval 0,1] [%emt 0:00:00] } 4.e3 { [%eval 0,1] [%emt 0:00:00] } 4...c5
{ [%eval 0,1] [%emt 0:00:00] } 5.Bd3 { [%eval 0,1] [%emt 0:00: 00] } 5...Nc6
{ [%eval 0,1] [%emt 0:00:00] } 6.Nf3 { [%eval 0,1] [%emt 0:00:00] } 6...Bxc3+
{ [%eval 0,1] [%emt 0:00:00] } 7.bxc3 { [%eval 0,1] [%emt 0:00:00] } 7...d6
{ [%eval 0, 1] [%emt 0:00:00] } 8.O-O { [%eval 0,1] [%emt 0:00:00] } 8...e5
{ [%eval 0,1] [%emt 0: 00:00] } 9.d5 { [%eval 9,12] [%emt 0:02:24] } 9...Na5
{ [%eval -10,15] [%emt 0:01:50] (e4) } 10.e4
{ [%eval 50,13] [%emt 0:01:17] (e4) } 10...O-O
{ [%eval -7,15] [%emt 0:01: 27] (Bg4) } 11.h3
{ [%eval 46,13] [%emt 0:01:37] (Rb1) } 11...b6
{ [%eval -2,13] [%emt 0:00:28] (Bd7) } 12.Be3
{ [%eval 57,13] [%emt 0:01:26] (Qe2) } 12...Kh8
{ [%eval 0,13] [%emt 0:00:39] (Bb7) } 13.Nd2
{ [%eval 61,12] [%emt 0:00:48] (Rb1) } 13...Qd7
{ [%eval -2,14] [%emt 0:00:42] (Bb7) } 14.Bg5
{ [%eval 65,12] [%emt 0:00:31] (Rb1) } 14...Ng8
{ [%eval 4,15] [%emt 0:01:12] (Ng8) } 15.f4
{ [%eval 67,11] [%emt 0:00:40] (Rb1) } 15...h6
{ [%eval 97,12] [%emt 0:00:20] (Bb7) } 16.Bh4
{ [%eval 62,12] [%emt 0: 01:21] (Bh4) } 16...exf4
{ [%eval 78,13] [%emt 0:00:27] (exf4) } 17.Rxf4
{ [%eval 60, 12] [%emt 0:00:47] (Rxf4) } 17...Ba6
{ [%eval 78,13] [%emt 0:00:16] (Ne7) } 18.Qh5
{ [%eval 89,10] [%emt 0:00:31] (Qh5) } 18...g6
{ [%eval 66,13] [%emt 0:00:29] (f6) } 19.Qe2
{ [%eval 90,11] [%emt 0:01:00] (Qf3) } 19...Rae8
{ [%eval 71,11] [%emt 0:00:18] (Rae8) } 20.Bg3
{ [%eval 83,10] [%emt 0:01:18] (Raf1) } 20...Kh7
{ [%eval 64,11] [%emt 0:00:20] (Ne7) } 21.Qf3
{ [%eval 98,11] [%emt 0:01:09] (Nb3) } 21...Re7
{ [%eval 60,12] [%emt 0:01:10] (Kg7) } 22.Qf2
{ [%eval 125,9] [%emt 0:00:16] (Qg4) } 22...Kg7
{ [%eval 62,12] [%emt 0:00:20] (Qa4) } 23.Rf3
{ [%eval 112,10] [%emt 0:00:47] (Rf3) } 23...f6
{ [%eval 50,12] [%emt 0:00:19] (Ree8) } 24.Bf4
{ [%eval 103,10] [%emt 0:01:29] (Re1) } 24...Rd8
{ [%eval 53,13] [%emt 0:00:35] (g5) } 25.Rg3
{ [%eval 110,9] [%emt 0:00:17] (Rg3) } 25...g5
{ [%eval 51,12] [%emt 0:00:27] (Qa4) } 26.Be2
{ [%eval 96,9] [%emt 0:00:15] (Kh1) } 26...Qa4
{ [%eval 53,11] [%emt 0:00:13] (Qa4) } 27.Qf1
{ [%eval 81,10] [%emt 0:00:13] (Bd1) } 27...Qc2
{ [%eval 52,11] [%emt 0:00:14] (Rb7) } 28.Bd1
{ [%eval 90,10] [%emt 0:00:13] (Qe1) } 28...Qb2
{ [%eval 61,13] [%emt 0:00:18] (Qb2) } 29.Bb3
{ [%eval 75,11] [%emt 0:00:16] (Bb3) } 29...Kh8
{ [%eval 40,12] [%emt 0: 00:17] (Ree8) } 30.Rb1
{ [%eval 90,13] [%emt 0:00:29] (Rb1) } 30...Qa3
{ [%eval 37,14] [%emt 0:00:21] (Qa3) } 31.Be3
{ [%eval 87,12] [%emt 0:00:31] (Be3) } 31...h5
{ [%eval 33,13] [%emt 0:00:24] (Bb7) } 32.Rf3
{ [%eval 101,10] [%emt 0:00:21] (Rf3) } 32...Kg7
{ [%eval 38,12] [%emt 0:00:20] (Kg7) } 33.Ra1
{ [%eval 98,10] [%emt 0:00:24] (Qc1) } 33...Re5
{ [%eval 35,11] [%emt 0:00:10] (Qb2) } 34.Rf2
{ [%eval 146,10] [%emt 0:00:11] (Rf5) } 34...Nb7
{ [%eval -40,13] [%emt 0:00:46] (Nb7) } 35.g3
{ [%eval 139, 10] [%emt 0:00:35] (Nf3) } 35...Rb8
{ [%eval 23,11] [%emt 0:00:20] (Re7) } 36.Qd3
{ [%eval 151,10] [%emt 0:00:18] (Re1) } 36...Rbe8
{ [%eval 17,11] [%emt 0:00:11] (Qa5) } 37.Bd1
{ [%eval 146,9] [%emt 0:00:05] (Bd1) } 37...h4
{ [%eval -26,11] [%emt 0:00:14] (h4) } 38.gxh4
{ [%eval 154,11] [%emt 0:00:14] (gxh4) } 38...gxh4
{ [%eval -63,12] [%emt 0:00:26] (gxh4) } 39.Bb3
{ [%eval 168,10] [%emt 0:00:17] (Rg2) } 39...Kf8
{ [%eval -51,11] [%emt 0:00:16] (Kf7) } 40.Rf4
{ [%eval 183,9] [%emt 0:00:07] (Rg2) } 40...Na5
{ [%eval -44,11] [%emt 0:00:16] (Na5) } 41.Rd1
{ [%eval 196,12] [%emt 0:02:04] (Rxh4) } 41...Qb2
{ [%eval -56,12] [%emt 0:00:30] (Nxb3) } 42.Rxh4
{ [%eval 210,13] [%emt 0:02:01] (Rb1) } 42...R5e7
{ [%eval -95,13] [%emt 0:01:06] (Nxb3) } 43.Bf4
{ [%eval 210,12] [%emt 0:01:15] (Kh1) } 43...Rg7+
{ [%eval -105,13] [%emt 0:00:37] (Nxb3) } 44.Kh1
{ [%eval 223,13] [%emt 0:01:52] (Kh1) } 44...Nb7
{ [%eval -159,14] [%emt 0:01:50] (Rd8) } 45.Qf3
{ [%eval 265,12] [%emt 0:00:56] (13) } 45...Ree7
{ [%eval -226,13] [%emt 0:00:27] (Ke7) } 46.Nf1
{ [%eval 417,13] [%emt 0:01:09] (Nf1) } 46...Qa3
{ [%eval -279,14] [%emt 0:00:39] (Na5) } 47.Rh8
{ [%eval 523,13] [%emt 0:01:19] (Ng3) } 47...Rh7
{ [%eval -490,12] [%emt 0:00:49] (Rh7) } 48.Bc1
{ [%eval 530,14] [%emt 0:00:54] (Bc1) } 48...Qxc1
{ [%eval -490,15] [%emt 0:01:10] (Rxh8) } 49.Rxg8+
{ [%eval 543,14] [%emt 0:00:53] (Rxg8) } 49...Kxg8
{ [%eval -504,16] [%emt 0:00:40] (Kxg8) } 50.Rxc1
{ [%eval 551,13] [%emt 0:01:04] (Rxc1) } 50...Rxh3+
{ [%eval -540,15] [%emt 0:01:02] (Na5) } 1-0

[Event "41st Amateur D7"]
[Site "ChessGUI4"]
[Date "2013.07.05"]
[Round "10.3"]
[White "MadChess 1.2"]
[Black "Butcher 1.64 64-bit"]
[Result "0-1"]
[BlackElo "2355"]
[ECO "B89"]
[EventDate "2013.??.??"]
[TimeControl "40/1500:40/1500:40/1500"]
[WhiteElo "2200"]

{ i5 Quad } 1.e4 { [%eval 0,1] [%emt 0:00:00] } 1...c5
{ [%eval 0,1] [%emt 0:00:00] } 2.Nf3 { [%eval 0,1] [%emt 0:00:00] } 2...Nc6
{ [%eval 0,1] [%emt 0:00:00] } 3.d4 { [%eval 0,1] [%emt 0:00:00] } 3...cxd4
{ [%eval 0,1] [%emt 0:00:00] } 4.Nxd4 { [%eval 0,1] [%emt 0:00:00] } 4...Nf6
{ [%eval 0,1] [%emt 0:00:00] } 5.Nc3 { [%eval 0,1] [%emt 0:00:00] } 5...d6
{ [%eval 0,1] [%emt 0:00:00] } 6.Bc4 { [%eval 0,1] [%emt 0:00: 00] } 6...e6
{ [%eval 0,1] [%emt 0:00:00] } 7.Be3 { [%eval 0,1] [%emt 0:00:00] } 7...Be7
{ [%eval 0,1] [%emt 0:00:00] } 8.O-O { [%eval 0,1] [%emt 0:00:00] } 8...O-O
{ [%eval 0, 1] [%emt 0:00:00] } 9.Qe2 { [%eval 15,9] [%emt 0:00:35] }
9...Nxd4 { [%eval 36,11] [%emt 0:01:06] (Ne5) } 10.Bxd4
{ [%eval 1,12] [%emt 0:00:26] (Bxd4) } 10...e5
{ [%eval 39,12] [%emt 0:00:59] (e5) } 11.Be3
{ [%eval 1,12] [%emt 0:00:48] (Be3) } 11...Be6
{ [%eval 35,11] [%emt 0:00:59] (Be6) } 12.Bxe6
{ [%eval 8,11] [%emt 0:00:24] (Bb3) } 12...fxe6
{ [%eval 26,11] [%emt 0:00:54] (fxe6) } 13.Rad1
{ [%eval -2,11] [%emt 0:01:23] (Rad1) } 13...Qe8
{ [%eval 35,11] [%emt 0:01:04] (Qc7) } 14.Qc4
{ [%eval -8,10] [%emt 0:00:32] (f4) } 14...Qf7
{ [%eval 15,11] [%emt 0:01:03] (Qc8) } 15.Qb3
{ [%eval 2,10] [%emt 0:00:29] (f4) } 15...b6
{ [%eval 7,12] [%emt 0:00:56] (b6) } 16.f3
{ [%eval 15,10] [%emt 0:00:27] (f3) } 16...Rad8
{ [%eval -2,11] [%emt 0:00:57] (Rfc8) } 17.Nb5
{ [%eval 13,10] [%emt 0:00:22] (Bg5) } 17...Rd7
{ [%eval -7,12] [%emt 0:01:01] (Rd7) } 18.Qc3
{ [%eval 7,9] [%emt 0:00:18] (c4) } 18...a6
{ [%eval 21,12] [%emt 0:01:44] (Qe8) } 19.Na3
{ [%eval 36,11] [%emt 0:00:33] (Na3) } 19...d5
{ [%eval 36,12] [%emt 0:00:55] (d5) } 20.Qxe5
{ [%eval 30,11] [%emt 0:00:31] (Qxe5) } 20...Rc8
{ [%eval 15,11] [%emt 0:00:54] (Rc8) } 21.Bxb6
{ [%eval 16,12] [%emt 0:01:05] (Bxb6) } 21...Bd6
{ [%eval 18,11] [%emt 0:00:43] (Bd6) } 22.Qg5
{ [%eval 54,11] [%emt 0:00:19] (Qg5) } 22...Bxa3
{ [%eval 33,11] [%emt 0:00:46] (Bxa3) } 23.bxa3
{ [%eval 35, 12] [%emt 0:00:44] (bxa3) } 23...Rxc2
{ [%eval 43,11] [%emt 0:00:38] (Rxc2) } 24.Rc1
{ [%eval 64,12] [%emt 0:00:39] (e5) } 24...h6
{ [%eval 12,11] [%emt 0:00:44] (h6) } 25.Qf4
{ [%eval 51,12] [%emt 0:00:42] (Qe3) } 25...Re2
{ [%eval 56,11] [%emt 0:01:17] (Rxa2) } 26.Rc8+
{ [%eval 160,13] [%emt 0:00:49] (Qb8) } 26...Kh7
{ [%eval 39,11] [%emt 0:00:40] (Kh7) } 27.Qb8
{ [%eval 132,13] [%emt 0:00:59] (Qb8) } 27...Qh5
{ [%eval 48,11] [%emt 0:00:40] (Qh5) } 28.exd5
{ [%eval 108,12] [%emt 0:00:31] (exd5) } 28...Rxd5
{ [%eval 37,11] [%emt 0:00:39] (Qxd5) } 29.Rh8+
{ [%eval 133,12] [%emt 0:01:45] (Rh8) } 29...Kg6
{ [%eval 25,8] [%emt 0:00:02] (Kg6) } 30.Bf2
{ [%eval 146,11] [%emt 0:00:38] (Bf2) } 30...Rdd2
{ [%eval 27,10] [%emt 0:00:41] (Qf5) } 31.h4
{ [%eval 137,9] [%emt 0:00:36] (Qg3) } 31...e5
{ [%eval -10,10] [%emt 0:00:40] (Qe5) } 32.Rd8
{ [%eval 73,10] [%emt 0:00:45] (Rd8) } 32...Rxa2
{ [%eval -15,10] [%emt 0:00: 39] (Rxd8) } 33.Rd6
{ [%eval 108,11] [%emt 0:00:48] (Rd6) } 33...Qf5
{ [%eval 2,10] [%emt 0:00:33] (Qf5) } 34.Rxa6
{ [%eval 129,11] [%emt 0:00:33] (Rxa6) } 34...Qf4
{ [%eval -1,10] [%emt 0:00:32] (e4) } 35.Rc6
{ [%eval 71,10] [%emt 0:00:54] (Rc6) } 35...Kh7
{ [%eval 1,10] [%emt 0:00:30] (Rxa3) } 36.Rc8
{ [%eval 130,11] [%emt 0:00:32] (Rc8) } 36...Rab2
{ [%eval -11,10] [%emt 0:00:28] (Rxf2) } 37.Rh8+
{ [%eval 26,14] [%emt 0:01:04] (Qa7) } 37...Kg6
{ [%eval -24,8] [%emt 0:00:01] (Kg6) } 38.Qa7
{ [%eval 32,14] [%emt 0:01:21] (Qa7) } 38...e4
{ [%eval -115,10] [%emt 0:00:23] (Qxh4) } 39.Qd4
{ [%eval 0,12] [%emt 0:00:53] (Qd4) } 39...Qc7
{ [%eval -251,9] [%emt 0:00:21] (Qf5) } 40.fxe4
{ [%eval -31,12] [%emt 0:01:11] (fxe4) } 40...Ng4
{ [%eval -173,10] [%emt 0:00:20] (Ng4) } 41.e5
{ [%eval 3,14] [%emt 0:01:02] (e5) } 41...Nxf2
{ [%eval -110,13] [%emt 0:02:30] (Nxf2) } 42.Rxf2
{ [%eval 0,14] [%emt 0:00:47] (Rxf2) } 42...Rxf2
{ [%eval -1,15] [%emt 0:02:18] (Qc1) } 43.Qg4+
{ [%eval 28,15] [%emt 0:00: 49] (Qg4) } 43...Kf7
{ [%eval -75,8] [%emt 0:00:01] (Kf7) } 44.e6+
{ [%eval 0,15] [%emt 0:00:29] (e6) } 44...Ke7
{ [%eval 0,16] [%emt 0:01:09] (Ke7) } 45.Qxg7+
{ [%eval 0,16] [%emt 0:00:45] (Qxg7) } 45...Kd6
{ [%eval 0,14] [%emt 0:00:43] (Kd6) } 46.Qd4+
{ [%eval 0,15] [%emt 0:00:26] (Qd4) } 46...Kc6
{ [%eval 0,14] [%emt 0:00:45] (Kc6) } 47.Qc4+
{ [%eval 0,15] [%emt 0:00:50] (Qc4) } 47...Kb7
{ [%eval 0,15] [%emt 0:00:46] (Kb6) } 48.Qe4+
{ [%eval 0,17] [%emt 0:01:04] (Qe4) } 48...Kb6
{ [%eval 0,14] [%emt 0: 00:46] (Kb6) } 49.Qd4+
{ [%eval 0,16] [%emt 0:00:35] (Qd4) } 49...Kc6
{ [%eval 0,13] [%emt 0:00:45] (Kc6) } 50.Qc4+
{ [%eval 0,100] [%emt 0:00:01] (Qc4) } 50...Kb7
{ [%eval 0,15] [%emt 0:00:44] (Kb6) } 51.Qxc7+
{ [%eval 0,100] [%emt 0:00:00] (Qe4) } 51...Kxc7
{ [%eval -297,15] [%emt 0:00:44] } 52.Rh7+
{ [%eval -271,13] [%emt 0: 00:26] (Kh2) } 52...Kd6
{ [%eval -336,14] [%emt 0:00:43] (Kd6) } 53.e7
{ [%eval -298, 13] [%emt 0:00:39] (Kh2) } 53...Rxg2+
{ [%eval -517,15] [%emt 0:00:42] (Rxg2) } 54.Kf1
{ [%eval -442,17] [%emt 0:01:37] (Kf1) } 54...Rgf2+
{ [%eval -582,14] [%emt 0:00:36] (Rbf2) } 55.Kg1
{ [%eval -444,16] [%emt 0:00:54] (Kg1) } 55...Kd7
{ [%eval -457,14] [%emt 0:01:03] (Rfc2) } 56.Rxh6
{ [%eval -453,16] [%emt 0:01:08] (Rxh6) } 56...Kxe7
{ [%eval -446,13] [%emt 0:00:34] (Rfc2) } 57.Rh7+
{ [%eval -458,16] [%emt 0:01:41] (Rh5) } 57...Ke6
{ [%eval -508,13] [%emt 0:00:34] (Kf6) } 58.Rh8
{ [%eval -458,15] [%emt 0:00:43] (Rc7) } 58...Rg2+
{ [%eval -525,13] [%emt 0:00:33] (Rfc2) } 59.Kf1
{ [%eval -458,15] [%emt 0:00:31] (Kh1) } 59...Rbf2+
{ [%eval -15982,14] [%emt 0:00:58] (Rh2) } 60.Ke1
{ [%eval -458,15] [%emt 0:00:00] (Ke1) } 60...Rh2
{ [%eval -15986,13] [%emt 0:00:31] } 61.Rh6+
{ [%eval 31756,16] [%emt 0:00:50] (Re8) } 61...Kf5
{ [%eval -15986,15] [%emt 0:00:31] (Kf5) } 62.Rh5+
{ [%eval 31758,16] [%emt 0:00:38] (Rh5) } 62...Kf4
{ [%eval -15988,15] [%emt 0:00:30] (Kf4) } 63.Rb5
{ [%eval 31760,16] [%emt 0:00:36] (Rb5) } 63...Ra2
{ [%eval -15990,15] [%emt 0:00:30] (Ra2) } 64.Rb4+
{ [%eval 31762,18] [%emt 0:00:41] (Rb4) } 64...Kg3
{ [%eval -15992,16] [%emt 0:00:26] (Kg3) } 65.Rb3+
{ [%eval 31764,17] [%emt 0:00:22] (Rb3) } 65...Kg2
{ [%eval -15994,15] [%emt 0:00:29] (Kg2) } 66.Rb2+
{ [%eval 31766,16] [%emt 0:00:28] (Rh3) } 66...Rxb2
{ [%eval -15996,14] [%emt 0:00:26] (Rxb2) } 67.a4
{ [%eval 31768,15] [%emt 0:00: 41] (Kd1) } 67...Rh1#
{ [%eval -15998,13] [%emt 0:00:25] (Rh1) } 0-1

[Event "41st Amateur D7"]
[Site "ChessGUI4"]
[Date "2013.07.05"]
[Round "10.4"]
[White "Shallow 1.0 64-bit"]
[Black "Tigran 2.3 64-bit"]
[Result "1-0"]
[BlackElo "2289"]
[ECO "E94"]
[EventDate "2013.??.??"]
[TimeControl "40/1500:40/1500:40/1500"]
[WhiteElo "2200"]

{ i5 Quad } 1.d4 { [%eval 0,1] [%emt 0:00:00] } 1...Nf6
{ [%eval 0,1] [%emt 0:00:00] } 2.c4 { [%eval 0,1] [%emt 0:00:00] } 2...g6
{ [%eval 0,1] [%emt 0:00:00] } 3.Nc3 { [%eval 0,1] [%emt 0:00:00] } 3...Bg7
{ [%eval 0,1] [%emt 0:00:00] } 4.e4 { [%eval 0,1] [%emt 0:00:00] } 4...d6
{ [%eval 0,1] [%emt 0:00:00] } 5.Nf3 { [%eval 0,1] [%emt 0:00: 00] } 5...O-O
{ [%eval 0,1] [%emt 0:00:00] } 6.Be2 { [%eval 0,1] [%emt 0:00:00] } 6...e5
{ [%eval 0,1] [%emt 0:00:00] } 7.O-O { [%eval 0,1] [%emt 0:00:00] } 7...Na6
{ [%eval 0, 1] [%emt 0:00:00] } 8.Re1 { [%eval 0,1] [%emt 0:00:00] } 8...Qe8
{ [%eval 0,1] [%emt 0:00:00] } 9.d5 { [%eval 28,14] [%emt 0:00:42] } 9...Nc5
{ [%eval -6,14] [%emt 0:00: 42] (b6) } 10.Qc2
{ [%eval 30,15] [%emt 0:00:42] (Qc2) } 10...a5
{ [%eval -14,13] [%emt 0:00:37] (b6) } 11.Be3
{ [%eval 34,14] [%emt 0:00:42] (Be3) } 11...Bg4
{ [%eval -10,12] [%emt 0:00:38] (b6) } 12.Bxc5
{ [%eval 50,14] [%emt 0:00:42] (Rad1) } 12...dxc5
{ [%eval -15,14] [%emt 0:00:43] (dxc5) } 13.Qd2
{ [%eval 45,14] [%emt 0:00: 42] (h3) } 13...Qe7
{ [%eval -10,13] [%emt 0:00:43] (Qe7) } 14.Rad1
{ [%eval 43,13] [%emt 0:00:42] (h3) } 14...Ra6
{ [%eval -11,13] [%emt 0:00:38] (Nh5) } 15.h3
{ [%eval 47,13] [%emt 0:00:42] (h3) } 15...Bc8
{ [%eval -10,14] [%emt 0:00:43] (Bxf3) } 16.Bd3
{ [%eval 47,13] [%emt 0:00:42] (Nh2) } 16...Nh5
{ [%eval 4,13] [%emt 0:00:43] (b6) } 17.Ne2
{ [%eval 39,14] [%emt 0:00:42] (Qg5) } 17...Bd7
{ [%eval 10,13] [%emt 0:00:44] (b6) } 18.Rf1
{ [%eval 44,13] [%emt 0:00:42] (Bc2) } 18...a4
{ [%eval 25,12] [%emt 0:00:44] (b6) } 19.Rb1
{ [%eval 47,13] [%emt 0:00:42] (Bc2) } 19...Rb6
{ [%eval 25,12] [%emt 0: 00:38] (Qf6) } 20.Rfc1
{ [%eval 47,12] [%emt 0:00:42] (Rfd1) } 20...Re8
{ [%eval 28,12] [%emt 0:00:44] (Rc8) } 21.Rd1
{ [%eval 48,14] [%emt 0:00:42] (Bc2) } 21...Rd8
{ [%eval 25,12] [%emt 0:00:45] (Qf6) } 22.a3
{ [%eval 49,14] [%emt 0:00:42] (Qc1) } 22...Qf6
{ [%eval 29,12] [%emt 0:00:39] (Qf6) } 23.Qe3
{ [%eval 47,14] [%emt 0:00:42] (Qe3) } 23...Qd6
{ [%eval 26,13] [%emt 0:00:42] (Qe7) } 24.Kh1
{ [%eval 48,13] [%emt 0: 00:42] (Qd2) } 24...Nf4
{ [%eval 28,13] [%emt 0:00:46] (Qe7) } 25.Nxf4
{ [%eval 52,15] [%emt 0:00:42] (Nc3) } 25...Bh6
{ [%eval 31,15] [%emt 0:00:45] (exf4) } 26.Bc2
{ [%eval 50,14] [%emt 0:00:42] (Bc2) } 26...Bxf4
{ [%eval 30,14] [%emt 0:00:46] (Bxf4) } 27.Qc3
{ [%eval 48,15] [%emt 0:00:42] (Qc3) } 27...Re8
{ [%eval 30,13] [%emt 0:00:46] (Re8) } 28.Rf1
{ [%eval 49,15] [%emt 0:00:42] (Ra1) } 28...Ra6
{ [%eval 41,12] [%emt 0: 00:47] (Bh6) } 29.Rbd1
{ [%eval 49,15] [%emt 0:00:42] (Rbe1) } 29...Bh6
{ [%eval 43,13] [%emt 0:00:48] (Bh6) } 30.Ne1
{ [%eval 47,14] [%emt 0:00:42] (Rfe1) } 30...b6
{ [%eval 31,13] [%emt 0:00:43] (Rd8) } 31.Qg3
{ [%eval 46,15] [%emt 0:00:42] (Nf3) } 31...Qf6
{ [%eval 25,13] [%emt 0:00:38] (Bc8) } 32.Nf3
{ [%eval 43,15] [%emt 0:00: 42] (Nd3) } 32...Raa8
{ [%eval 24,15] [%emt 0:00:50] (Bf4) } 33.Kg1
{ [%eval 43,13] [%emt 0:00:42] (Qh4) } 33...Qe7
{ [%eval 24,13] [%emt 0:00:41] (Bc8) } 34.Nd2
{ [%eval 48,14] [%emt 0:00:42] (Nh2) } 34...Bf4
{ [%eval 30,13] [%emt 0:00:53] (Qf6) } 35.Qf3
{ [%eval 50,14] [%emt 0:00:42] (Qd3) } 35...Red8
{ [%eval 29,13] [%emt 0:00:51] (Bh6) } 36.Nb1
{ [%eval 50,13] [%emt 0:00:42] (Qc3) } 36...Bh6
{ [%eval 8,14] [%emt 0: 00:55] (Bh6) } 37.Nc3
{ [%eval 49,14] [%emt 0:00:42] (Nc3) } 37...Ra5
{ [%eval 0,13] [%emt 0:00:57] (Ra7) } 38.Bd3
{ [%eval 49,14] [%emt 0:00:42] (Rd3) } 38...Kg7
{ [%eval 8,13] [%emt 0:00:58] (Qg5) } 39.Kh1
{ [%eval 49,14] [%emt 0:00:42] (Be2) } 39...Qg5
{ [%eval 24,13] [%emt 0:01:01] (Kg8) } 40.Bc2
{ [%eval 52,13] [%emt 0:00:42] (Be2) } 40...Be8
{ [%eval 12,13] [%emt 0:01:07] (Qh4) } 41.Rfe1
{ [%eval 50,13] [%emt 0:00:37] (Kg1) } 41...Rd6
{ [%eval 22,13] [%emt 0:00:29] (Kg8) } 42.Rd3
{ [%eval 52,13] [%emt 0:00:37] (Qe2) } 42...Rf6
{ [%eval 2,13] [%emt 0:00:34] (b5) } 43.Qe2
{ [%eval 58,14] [%emt 0:00:37] (Qe2) } 43...Qh4
{ [%eval 0,13] [%emt 0:00:34] (Bd7) } 44.Kg1
{ [%eval 59,13] [%emt 0:00:37] (Kg1) } 44...Bd7
{ [%eval 0,12] [%emt 0:00:34] (Bd7) } 45.Red1
{ [%eval 58,14] [%emt 0:00:37] (Rg3) } 45...Rd6
{ [%eval -10,12] [%emt 0:00:34] (Qg5) } 46.Rf3
{ [%eval 52,13] [%emt 0:00:37] (Rf3) } 46...Rf6
{ [%eval -7,13] [%emt 0: 00:33] (Rf6) } 47.Rxf6
{ [%eval 57,14] [%emt 0:00:37] (Rxf6) } 47...Qxf6
{ [%eval -71, 14] [%emt 0:00:33] (Qxf6) } 48.d6
{ [%eval 93,13] [%emt 0:00:37] (d6) } 48...Qd8
{ [%eval -76,14] [%emt 0:00:34] (Qd8) } 49.dxc7
{ [%eval 92,14] [%emt 0:00:37] (Qd3) } 49...Qxc7
{ [%eval -81,15] [%emt 0:00:35] (Qxc7) } 50.Qd3
{ [%eval 93,15] [%emt 0:00:37] (Qd3) } 50...Ra7
{ [%eval -97,15] [%emt 0:00:35] (Ra7) } 51.Qd6
{ [%eval 96,15] [%emt 0:00:37] (Qd6) } 51...Bg5
{ [%eval -104,15] [%emt 0:00:35] (Bc6) } 52.Qxc7
{ [%eval 103,15] [%emt 0:00:37] (Qxc7) } 52...Rxc7
{ [%eval -93,16] [%emt 0: 00:28] (Rxc7) } 53.Rd6
{ [%eval 103,15] [%emt 0:00:37] (Bxa4) } 53...Rb7
{ [%eval -115, 15] [%emt 0:00:35] (Rb7) } 54.Bxa4
{ [%eval 105,15] [%emt 0:00:37] (Bxa4) } 54...Bc8
{ [%eval -127,16] [%emt 0:00:32] (Bxa4) } 55.Nd5
{ [%eval 116,14] [%emt 0:00:37] (Nd5) } 55...Be6
{ [%eval -165,15] [%emt 0:00:36] (Be6) } 56.b3
{ [%eval 118,14] [%emt 0:00:37] (b3) } 56...Ra7
{ [%eval -148,15] [%emt 0:00:28] (Bxd5) } 57.Nxb6
{ [%eval 163,14] [%emt 0:00:37] (Nxb6) } 57...Ra6
{ [%eval -153,14] [%emt 0:00:36] (Ra6) } 58.Kf1
{ [%eval 180,15] [%emt 0:00:37] (g4) } 58...Kh6
{ [%eval -147,13] [%emt 0:00:36] (h5) } 59.Rc6
{ [%eval 189,15] [%emt 0:00:37] (Ke1) } 59...Ra5
{ [%eval -187,15] [%emt 0:00:36] (Bc1) } 60.Ke2
{ [%eval 208,15] [%emt 0:00:37] (Ke2) } 60...Kg7
{ [%eval -193, 15] [%emt 0:00:37] (Bc1) } 61.Kd3
{ [%eval 212,14] [%emt 0:00:37] (Kd1) } 61...h6
{ [%eval -199,13] [%emt 0:00:37] (Bd8) } 62.Kc2
{ [%eval 220,14] [%emt 0:00:37] (Rc7) } 62...Bh4
{ [%eval -204,15] [%emt 0:00:36] (Kf8) } 63.f3
{ [%eval 223,14] [%emt 0:00:37] (f3) } 63...Bf2
{ [%eval -211,14] [%emt 0:00:37] (Bf2) } 64.b4
{ [%eval 221, 14] [%emt 0:00:37] (Rc7) } 64...Ra7
{ [%eval -256,15] [%emt 0:00:36] (Ra7) } 65.b5
{ [%eval 225,14] [%emt 0:00:37] (b5) } 65...h5
{ [%eval -280,13] [%emt 0:00:33] (Kf8) } 66.Kb3
{ [%eval 235,14] [%emt 0:00:37] (Kb3) } 66...g5
{ [%eval -314,15] [%emt 0:00: 37] (Kg8) } 67.Nd5
{ [%eval 241,14] [%emt 0:00:37] (Nd5) } 67...Ra8
{ [%eval -316,14] [%emt 0:00:39] (Ra8) } 68.Rc7
{ [%eval 250,13] [%emt 0:00:37] (Ra6) } 68...Rb8
{ [%eval -291,15] [%emt 0:00:39] (h4) } 69.Ka2
{ [%eval 241,14] [%emt 0:00:37] (Ne7) } 69...g4
{ [%eval -249,16] [%emt 0:00:39] (g4) } 70.hxg4
{ [%eval 250,15] [%emt 0:00:37] (hxg4) } 70...hxg4
{ [%eval -265,16] [%emt 0:00:40] (hxg4) } 71.Bd1
{ [%eval 251,15] [%emt 0:00:37] (Bd1) } 71...gxf3
{ [%eval -277,15] [%emt 0:00:31] (gxf3) } 72.gxf3
{ [%eval 253,14] [%emt 0:00:37] (gxf3) } 72...Bd4
{ [%eval -282,14] [%emt 0:00:41] (Rh8) } 73.a4
{ [%eval 224,14] [%emt 0:00:37] (Kb3) } 73...Rh8
{ [%eval -216,16] [%emt 0:00:42] (Rh8) } 74.Kb3
{ [%eval 195,14] [%emt 0:00:37] (Kb3) } 74...Rh2
{ [%eval -215, 17] [%emt 0:00:42] (Rh2) } 75.a5
{ [%eval 233,15] [%emt 0:00:37] (a5) } 75...Rd2
{ [%eval -239,16] [%emt 0:00:33] (Rb2) } 76.Bc2
{ [%eval 241,15] [%emt 0:00:37] (Bc2) } 76...Rf2
{ [%eval -326,16] [%emt 0:00:39] (Rf2) } 77.b6
{ [%eval 235,15] [%emt 0:00:37] (a6) } 77...Rxf3+
{ [%eval -437,16] [%emt 0:00:48] (Rxf3) } 78.Ka4
{ [%eval 636,14] [%emt 0:00:37] (Ka4) } 78...Rf2
{ [%eval -496,16] [%emt 0:00:50] (Bxd5) } 79.Bb3
{ [%eval 531,14] [%emt 0:00:49] (Bb3) } 79...Rf1
{ [%eval -507,15] [%emt 0:00:52] (Rf1) } 80.Ka3
{ [%eval 589,13] [%emt 0:00:34] (a6) } 80...Ra1+
{ [%eval -617,15] [%emt 0:00:57] (Bg4) } 81.Ba2
{ [%eval 182,1] [%emt 0:00:00] (Ba2) } 81...Bg4
{ [%eval -707,16] [%emt 0:00:34] } 82.b7
{ [%eval 614,12] [%emt 0:00:38] (b7) } 82...Be2
{ [%eval -704,16] [%emt 0:00:34] (Be2) } 83.Nb6
{ [%eval 725,13] [%emt 0:00:38] (Nb6) } 83...Bd3
{ [%eval -769,15] [%emt 0:00:34] (Bd3) } 84.Kb3
{ [%eval 722,12] [%emt 0:00:38] (Kb3) } 84...Be2
{ [%eval -769,13] [%emt 0:00:34] (Rc1) } 85.Rd7
{ [%eval 815,12] [%emt 0:00:38] (b8=Q) } 1-0